Cogmind - Beta 17 @@@ ROGUE MODE // 2026.06.29 @ 22:45:39 Player: Jennifer Result: Destroyed by D-53 Grenadier with Mini Grenade Launcher Performance ------------- Evolutions (1) 500 Regions Visited (3) 600 Robots Destroyed (30) 150 Value Destroyed (829) 829 Prototype IDs (0) 0 Alien Tech Used (0) 0 Bonus (0) 0 TOTAL SCORE: 2079 Bonus ------- None Cogmind --------- Core Integrity 0/400 Matter 285/300 Energy 98/100 System Corruption 0% Temperature Cool (1) Movement Walking (120) Location -9/Mines Parts ------- > --- POWER (1) -------- (None) > --- PROPULSION (3) --- Aluminum Leg > --- UTILITY (3) ------ Small Storage Unit Melee Analysis Suite > --- WEAPON (2) ------- Flail Mining Claw > --- INVENTORY (8) ---- Light Ion Engine Improved EM Shotgun Improved EM Shotgun Mace Katana Peak State ------------ > --- POWER ------------ Ion Engine > --- PROPULSION ------- Compact Wheel Compact Wheel Compact Wheel > --- UTILITY ---------- Small Storage Unit Melee Analysis Suite Medium Armor Plating > --- WEAPON ----------- Mace Mining Claw > --- INVENTORY -------- Light Ion Engine Compact Wheel Compact Wheel Compact Wheel ECM Suite Light Assault Rifle Light Assault Rifle Katana [Rating: 14] Favorites ----------- Power Ion Engine Engine Ion Engine Propulsion Compact Wheel Leg Aluminum Leg Wheel Compact Wheel Utility Small Storage Unit Device ECM Suite Storage Small Storage Unit Processor Melee Analysis Suite Protection Hardened Light Armor Plating Weapon Mining Claw Energy Gun Particle Gun Ballistic Gun Assault Rifle Special Weapon Mining Laser Impact Weapon Mace Slashing Weapon Mining Claw Build | -11 -10 -9 -9 ------- Run | Yrd Mat Mat Min Slots Evolved 2 | . . 2 . Power . | . . . . Propulsion 1 | . . 1 . Utility 1 | . . 1 . Weapon . | . . . . Parts Attached 26 | 4 9 9 4 Power 3 | 1 1 . 1 Engine 3 | 1 1 . 1 Core . | . . . . Reactor . | . . . . Propulsion 9 | 2 1 4 2 Treads . | . . . . Leg 2 | . . . 2 Wheel 7 | 2 1 4 . Hover . | . . . . Flight . | . . . . Utility 7 | 1 2 4 . Device 2 | . 2 . . Storage 1 | 1 . . . Processor 1 | . . 1 . Hackware . | . . . . Protection 3 | . . 3 . Artifact . | . . . . Weapon 7 | . 5 1 1 Energy Gun 1 | . 1 . . Energy Cannon . | . . . . Ballistic Gun 2 | . 2 . . Ballistic Cannon . | . . . . Launcher . | . . . . Special Weapon 1 | . 1 . . Impact Weapon 2 | . . 1 1 Slashing Weapon 1 | . 1 . . Piercing Weapon . | . . . . Special Melee Weapon . | . . . . Unidentified Prototypes . | . . . . Parts Lost 15 | . 3 6 6 Power 3 | . 1 1 1 Propulsion 8 | . 1 3 4 Utility 3 | . . 2 1 Weapon 1 | . 1 . . Highest Loss Streak 5 | . 1 2 5 To Critical Strikes . | . . . . Average Backups 6 | 2 6 6 6 Power . | . . . . Propulsion 3 | 1 5 2 1 Utility . | . . . . Weapon 1 | . . 2 4 Tool/Special . | . . . . Unused Backups 10 | . 3 3 4 Power 1 | . . . 1 Propulsion 5 | . 3 2 . Utility . | . . . . Weapon 4 | . . 1 3 Tool/Special . | . . . . Average Slot Usage (%) 93 | . 94 94 88 Engine 12 | . 14 11 10 Wheel 28 | . 27 30 22 Device 6 | . 11 4 . Storage 12 | . 14 11 11 Processor 5 | . . 8 11 Protection 4 | . . 6 9 Energy Gun 1 | . 2 . . Ballistic Gun 6 | . 13 1 . Impact Weapon 5 | . . 9 11 Slashing Weapon 9 | . 8 10 11 Peak Build Rating 14 | 4 10 14 14 Average Rating 10 | 3 7 12 12 On Entrance 6 | . 4 7 13 Avg Prop Armor Cover (%) . | . . . . Naked Turns . | . . . . Heaviest Build 23 | 10 16 23 17 Greatest Support 48 | 32 32 48 48 Greatest Overweight (x) 1 | 1 . . 1 Average Overweight (x) . | . . . . Largest Inventory Capacity 8 | 8 8 8 8 Average Capacity 7 | 7 8 8 8 Most Carried 8 | 4 8 8 7 Average Carried 6 | 2 6 7 6 Final Capacity 8 | 8 8 8 8 Final Carried 7 | 4 6 7 5 Class Distribution -------------------- 50% | Mutant 49% | Gladiator Dominant Class ---------------- Mutant | -10/Materials Gladiator | -9/Materials Gladiator | -9/Mines Resources | -11 -10 -9 -9 ----------- Run | Yrd Mat Mat Min Matter Collected 490 | 221 155 104 10 Remotely . | . . . . Salvage Created 1082 | . 401 645 36 Parts 67 | . 31 34 2 Haulers Intercepted 2 | . . 2 . Recyclers Shooed . | . . . . Parts Field Recycled . | . . . . Retrieved Matter . | . . . . Parts Self-Destructed . | . . . . Prevented . | . . . . Parts Restored . | . . . . Kills | -11 -10 -9 -9 ------- Run | Yrd Mat Mat Min Combat Hostiles Destroyed 27 | . 12 13 2 Melee 22 | . 7 13 2 Guns 5 | . 5 . . Classes Destroyed 6 | . 3 3 . Builder 1 | . 1 . . Hauler 2 | . . 2 . Swarmer 7 | . 3 2 2 Grunt 15 | . 9 6 . Duelist 1 | . . 1 . Sentry 4 | . . 4 . Best Kill Streak 3 | . 3 2 2 Combat Bots Only 3 | . 3 2 2 Max Kills in Single Turn 1 | . 1 1 1 Gunslinging . | . . . . Exploded . | . . . . Melee 1 | . 1 1 1 Uniques/NPCs Destroyed . | . . . . Combat | -11 -10 -9 -9 -------- Run | Yrd Mat Mat Min Hostile Shots Fired 195 | . 38 107 50 Missed 53 | . 9 31 13 Hits 142 | . 29 76 37 Melee 1 | . . 1 . Projectile 141 | . 29 75 37 AOE 13 | . . . 13 Critical Strikes 3 | . 2 1 . Damage Taken 1899 | . 298 903 698 Core 485 | . 74 205 206 Absorbed by Shields . | . . . . Regen/Repaired (Parts) 11 | . . 11 . Core Remaining (%) 85 | 100 70 . . Volleys Fired 17 | . 13 4 . Largest 2 | . 2 1 . Hottest 120 | . 120 20 . Shots Fired 26 | . 22 4 . Gun 23 | . 19 4 . Cannon . | . . . . Launcher . | . . . . Special 3 | . 3 . . Kinetic 17 | . 13 4 . Thermal 9 | . 9 . . Explosive . | . . . . Electromagnetic . | . . . . Robot Hit Streak 3 | . 3 1 . Robot Miss Streak 4 | . 4 3 . Penetration Max . | . . . . Secondary Targets 1 | . 1 . . Max Gunslinging Chain 1 | . 1 . . Shots Hit Robots 73 | . 22 46 5 Core Hits 34 | . 16 16 2 Critical Kills . | . . . . Critical Parts Destroyed 1 | . . 1 . Critical Strikes 1 | . . 1 . Smash 1 | . . 1 . Melee Attacks 87 | . 14 62 11 Impact 10 | . . 9 1 Slashing 77 | . 14 53 10 Piercing . | . . . . Sneak Attacks 3 | . 1 2 . Combat Hostiles 1 | . 1 . . Follow-up Attacks 8 | . . 7 1 Damage Inflicted 1679 | . 438 1125 116 Guns 158 | . 150 8 . Cannons . | . . . . Explosions . | . . . . Melee 1497 | . 264 1117 116 Ramming . | . . . . Kinetic 115 | . 107 8 . Thermal 67 | . 67 . . Explosive . | . . . . Electromagnetic . | . . . . Impact 223 | . . 181 42 Slashing 1274 | . 264 936 74 Piercing . | . . . . Highest Corruption . | . . . . Average Corruption . | . . . . Corruption Purged . | . . . . Corruption Blocked . | . . . . Overload Shots . | . . . . Overflow Damage 106 | . . 101 5 Projectiles . | . . . . Explosions . | . . . . Melee 106 | . . 101 5 Knockbacks . | . . . . Impact . | . . . . Kinetic . | . . . . Secondary . | . . . . Self-Inflicted Damage . | . . . . Shots . | . . . . Rammed 1 | . 1 . . Targets Rammed 1 | . 1 . . Kicked . | . . . . Crushed . | . . . . Highest Temperature 46 | . 46 10 . Average Temperature 19 | . 20 8 . Received Heat Transfer 471 | . 126 345 . Siege Activations . | . . . . Martial Activations . | . . . . Shielding Activations . | . . . . Robots Disrupted . | . . . . Combat Hostiles . | . . . . Robots Corrupted 1 | . . 1 . Combat Hostiles . | . . . . Parts Fried . | . . . . Impact Corruptions 3 | . . 3 . Robots Melted . | . . . . Combat Hostiles . | . . . . Parts Melted . | . . . . Heat Transferred 161 | . 161 . . Parts Sabotaged . | . . . . Parts Stolen . | . . . . Parts Stripped . | . . . . Power Chain Reactions . | . . . . Alert | -11 -10 -9 -9 ------- Run | Yrd Mat Mat Min Maximum Alert Level . | . . . . Low Security (%) 100 | 100 100 100 100 Level 1 . | . . . . Level 2 . | . . . . Level 3 . | . . . . Level 4 . | . . . . Level 5 . | . . . . High Security . | . . . . Max Security . | . . . . Peak Influence 102 | . 102 79 43 Initial 25 | . . 25 23 Average 35 | . 51 27 16 Influence Increases 711 | . 322 349 40 Destroy 0b10 Robot/C 540 | . 240 260 40 Destroy 0b10 Robot/NC 15 | . 5 10 . Destroy Leader 124 | . 60 64 . Destroy Structure 2 | . 2 . . Lose Combat Pursuer 30 | . 15 15 . Influence Decreases 711 | . 262 348 101 Entered New Map 73 | . . 35 38 Time Decay 548 | . 232 263 53 Lost Part 90 | . 30 50 10 Squads Dispatched 5 | . 4 1 . Investigation 1 | . 1 . . Extermination . | . . . . Reinforcement 4 | . 3 1 . Assault . | . . . . Garrison . | . . . . Intercept . | . . . . Searches Triggered . | . . . . Construction Impeded . | . . . . Haulers Reinforced . | . . . . Active Scanning Responses . | . . . . Cargo Convoy Interrupts . | . . . . Stealth | -11 -10 -9 -9 --------- Run | Yrd Mat Mat Min Distress Signals 3 | . 1 2 . Communications Jammed . | . . . . Distress Signals . | . . . . Times Spotted 52 | . 24 23 5 Peak Tracking Total 5 | . 5 4 3 Tactical Retreats 6 | . 2 4 . ECM-based Alert Blocks 7 | . 2 5 . Traps | -11 -10 -9 -9 ------- Run | Yrd Mat Mat Min Traps Triggered 2 | . 2 . . Indirectly . | . . . . Trap Hack Attempts . | . . . . Triggered . | . . . . Disarmed . | . . . . Reprogrammed . | . . . . Reused . | . . . . Traps Extracted . | . . . . Installed . | . . . . Triggered . | . . . . Machines | -11 -10 -9 -9 ---------- Run | Yrd Mat Mat Min Machines Disabled . | . . . . Max in Single Turn . | . . . . Machines Repaired . | . . . . Machines Dismantled . | . . . . Machines Sabotaged . | . . . . Overloaded Fab Kills . | . . . . Hacking | -11 -10 -9 -9 --------- Run | Yrd Mat Mat Min Machines Accessed 1 | . . 1 . Terminals . | . . . . Fabricators . | . . . . Repair Stations 1 | . . 1 . Recycling Units . | . . . . Scanalyzers . | . . . . Garrison Access . | . . . . Total Hacks 2 | . . 2 . Successful 2 | . . 2 . Failed . | . . . . Catastrophic . | . . . . Database Lockouts . | . . . . Manual . | . . . . Terminals . | . . . . Fabricators . | . . . . Repair Stations 2 | . . 2 . Recycling Units . | . . . . Scanalyzers . | . . . . Garrison Access . | . . . . Terminal Hacks . | . . . . Fabricator Hacks . | . . . . Repair Station Hacks 2 | . . 2 . Scan Component 1 | . . 1 . Repair 1 | . . 1 . Recycling Unit Hacks . | . . . . Scanalyzer . | . . . . Garrison Access Hacks . | . . . . Unauthorized Hacks . | . . . . Terminals . | . . . . Fabricators . | . . . . Repair Stations . | . . . . Recycling Units . | . . . . Scanalyzers . | . . . . Garrison Access . | . . . . Data Cores Recovered . | . . . . Used . | . . . . Hacking Detections . | . . . . Full Trace Events . | . . . . Feedback Events . | . . . . Feedback Blocked . | . . . . Robot Schematics Acquired . | . . . . Robots Built . | . . . . Authchips . | . . . . Time . | . . . . Total Robot Build Rating . | . . . . Part Schematics Acquired . | . . . . Parts Built . | . . . . Authchips . | . . . . Time . | . . . . Total Part Build Rating . | . . . . Part Studies Acquired . | . . . . Parts Repaired 1 | . . 1 . Time 26 | . . 26 . Parts Recycled . | . . . . Recycled Matter . | . . . . Retrieved Matter . | . . . . Retrieved Components . | . . . . Parts Scanalyzed . | . . . . Part Schematics Acquired . | . . . . Parts Damaged . | . . . . Bothacking | -11 -10 -9 -9 ------------ Run | Yrd Mat Mat Min Used RIF Installer . | . . . . Robots Hacked . | . . . . Non-combat . | . . . . Combat . | . . . . Robot Hacks Applied . | . . . . Relay Couplers Released . | . . . . Fabnet Peak Effective % . | . . . . Robots Rewired . | . . . . Allies Hacked . | . . . . Hacks Repelled . | . . . . Allies | -11 -10 -9 -9 -------- Run | Yrd Mat Mat Min Total Allies . | . . . . Largest Group . | . . . . Highest-Rated Group . | . . . . Highest-Rated Ally . | . . . . Total Orders . | . . . . Ally Attacks . | . . . . Total Damage . | . . . . Kills . | . . . . Allies Corrupted . | . . . . Allies Melted . | . . . . Intel | -11 -10 -9 -9 ------- Run | Yrd Mat Mat Min Active Infowar (turns) 465 | . 182 283 . ECM 465 | . 182 283 . Robot Analysis Total . | . . . . Derelict Logs Recovered 1 | . . . 1 Drone Launches . | . . . . Drone Recoveries . | . . . . Exploration | -11 -10 -9 -9 ------------- Run | Yrd Mat Mat Min Turns Passed 1443 | 41 570 685 147 Spaces Moved 880 | 32 376 362 110 Core 2 | 2 . . . Treads . | . . . . Legs 11 | . . . 11 Wheels 867 | 30 376 362 99 Hover . | . . . . Flight . | . . . . Fastest Speed 50 | 50 100 100 100 Average Speed 100 | 98 100 100 102 Slowest Speed 120 | 100 100 100 120 Overloaded Moves . | . . . . Propulsion Burnouts . | . . . . Robots Hopped . | . . . . Potential Cave-ins . | . . . . Cave-ins Triggered . | . . . . Exploration Rate (%) 35 | 4 68 44 26 Regions Visited 3 Branch Regions 1 Pre-discovered Areas . | . . . . Known Exits Taken . | . . . . Unknown Exits Taken 3 | 1 1 1 . Scrap Searched 1 | . . . 1 Spaces Dug . | . . . . Terrain Destroyed 2 | . 2 . . Melee . | . . . . Projectile 2 | . 2 . . AOE . | . . . . Terrain Rammed . | . . . . Walls Destroyed . | . . . . Machines Disabled . | . . . . Actions | -11 -10 -9 -9 --------- Run | Yrd Mat Mat Min Total 1252 | 40 514 574 124 Wait 209 | . 82 127 . Move 877 | 31 375 361 110 Hop . | . . . . Pick Up 25 | 5 10 10 . Fast Attach 13 | 3 7 3 . Attach 14 | 1 2 8 3 Detach 3 | . . 3 . Swap 3 | . 2 . 1 Drop 13 | . 8 5 . Fire 17 | . 13 4 . Melee 77 | . 14 53 10 Ram 1 | . 1 . . Kick . | . . . . Crush . | . . . . Escape Stasis . | . . . . Rewire . | . . . . Trap . | . . . . Miscellaneous . | . . . . Route ------- -11/Scrapyard -10/Materials (discovered 3 exits: *Mat x2 / [*Min]) -9/Materials (discovered 3 exits: [*Mat] / [*Min] / [*Sto]) -9/Mines History --------- Turn | Location | Event 23 | -11/Scrapyard | Discovered new exit (range 15) 42 | -11/Scrapyard | Entered Materials 184 | -10/Materials | Discovered new exit (range 15) 292 | -10/Materials | Discovered new exit (range 16) 305 | -10/Materials | Build established: Mutant 595 | -10/Materials | Discovered new exit (range 15) 612 | -10/Materials | Entered another Materials area 612 | -9/Materials | Evolved 2 slots: Propulsion x1, Utility x1 659 | -9/Materials | Repaired Mining Claw 856 | -9/Materials | Discovered new exit (range 7) 872 | -9/Materials | Discovered new exit (range 5) 1027 | -9/Materials | Build established: Gladiator 1224 | -9/Materials | Discovered new exit (range 10) 1279 | -9/Materials | Core integrity fell below 50% 1297 | -9/Materials | Entered Mines 1362 | -9/Mines | Assembled infested the area 1382 | -9/Mines | Learned location of 1 exit from Materials 1441 | -9/Mines | Core integrity fell below 20% 1444 | -9/Mines | Destroyed by D-53 Grenadier with Mini Grenade Launcher Last Messages --------------- squad. 01366_ Searching scrap... 01366_ Found Tractor Beam. 01366_ Found Visual Processing Unit. 01366_ Found Lgt. EM Pulse Cannon. 01366_ Found 67 Matter. 01382_ Acquired derelict log, extracted data. Data stored: Materials exits (x1). 01388_ K-01 Serf collects debris. 01414_ C-45 Heavy ARC bursts open, deploying its payload. 01414_ D-53 Grenadier unfolds itself. 01426_ Com. Wheel destroyed. 01427_ The unstable cave ceiling collapses. 01428_ Hrd. Light Armor Plating destroyed. 01430_ Lgt. Ion Engine destroyed. 01433_ Com. Wheel destroyed. 01439_ The unstable cave ceiling collapses. 01439_ Aluminum Leg destroyed. 01441_ Laser Drill disabled. 01442_ The unstable cave ceiling collapses. Map ----- +----------------------------------------------------+ | | | | | | | | | | | | | | | | | | | | | | | | | | | | | | | | | | | | | | | | | ?????????????????????######### ###???????? | | ??????????######????## # ######??? | | ########### ##?### #??? | | !%] ### "" #??? | | !! ## "" #??? | | ######### d @ "" #??? | | ?????????# d #??? | | ??????????# ######??? | | ########### #### #???????? | | #??## #???????? | | #############???##### ##### ###???????? | | ????????????????????##????######?????????? | | ?????????????????????????????????????????? | | ?????????????????????????????????????????? | | ?????????????????????????????????????????? | | ?????????????????????????????????????????? | | ?????????????????????????????????????????? | | ?????????????????????????????????????????? | | ?????????????????????????????????????????? | | ?????????????????????????????????????????? | | ?????????????????????????????????????????? | | ???????????????????????????????????????? | | #?????????????????????????????????????? | | #????????????????????????????????????? | | ???????????????????????????????????? | | ?????????????????????????????????? | | ????????????????????????????????? | | #???????????????????????????????? | | ##???????????????????????????????? | | ##????????????????????????????????? | +----------------------------------------------------+ Best States ------------- Heat Dissipation 39 Energy Generation 10 Energy Capacity 250 Matter Stores 300 Matter Capacity 300 Sight Range 16 Terrain Scan Density 10 ECM Strength 1 Armor Coverage 225 Evasion (%) 55 Melee Accuracy 5 Item Schematics ----------------- None Robot Schematics ------------------ None Fabricated ------------ Nothing Repaired ---------- Mining Claw | 72% | -9/Materials Studied --------- None Alien Tech Used ----------------- None Achievements -------------- None Challenges ------------ None Game ------ Seed CoolantHackingTriangulator Manual? 0 Play Time 00:14:10 Cumulative 54.5 hours Start 2026.06.29 @ 22:32:30 End 2026.06.29 @ 22:45:39 Sessions 1 Manual Loads 0 Difficulty Rogue Special Mode None Game No. 84 Rogue 84 Adventurer 0 Explorer 0 Win Type - Total 1 Types 1/0/0/0/0/0/0/0/0/0 Lore% 16 Gallery% 27 Achievement% 18 Wizard Run 0 Options --------- Layout 0 ASCII 0 Keyboard 1 Movement Vi Keybinds 0 Fullscreen 2 Font 18/SmallcapsGlow Map View 76x50 Zoom Use 0% Tactical HUD 1 Map Filters NONE Filters NONE Steam 1 RUN: f9a3e0e5-67ea-4290-9261-83393cd75d57